Cogmind - Beta 13 @@@ ROGUE MODE // 2024.04.13 @ 01:50:31 // AFD2020/Player2 Player: Demo Result: Destroyed by B-75 Beast with Magnetic Acceleration Cannon Performance ------------- Evolutions (5) 2500 Regions Visited (12) 2400 Robots Destroyed (55) 275 Value Destroyed (3614) 3614 Prototype IDs (5) 100 Alien Tech Used (0) 0 Bonus (6278) 6278 TOTAL SCORE: 15167 Bonus ------- Triggered High Security 500 High Alert Combat Kills 571 Follower Combat Kills 4300 Entered Garrisons 800 Used RIF Installer 1000 Friendly Fire -893 Cogmind --------- Core Integrity 0/1000 Matter 197/300 Energy 20/100 System Corruption 3% Temperature Warm (107) Movement Rolling (170) Ox6 Location -5/Garrison Parts ------- > --- POWER (1) -------- (None) > --- PROPULSION (3) --- Wheel > --- UTILITY (10) ----- High-capacity Storage Unit Active Sensor Suite Centrium Light Armor Plating Relay Coupler [NC] (5) Relay Coupler [NC] (39) Relay Coupler [Grunt] (39) > --- WEAPON (3) ------- Enhanced Nova Cannon Heavy Flak Cannon > --- INVENTORY (20) --- Quantum Reactor Light Quantum Reactor Light Quantum Reactor Machine Analyzer Advanced Transmission Jammer Active Sensor Spoofer Relay Coupler [NC] (42) Relay Coupler [NC] (41) Relay Coupler [NC] (31) Relay Coupler [NC] (27) Relay Coupler [Grunt] (31) Relay Coupler [Specialist] (20) Improved Remote Datajack Improved Plasma Cutter Peak State ------------ > --- POWER ------------ Antimatter Reactor > --- PROPULSION ------- Armored Huge Wheel > --- UTILITY ---------- High-capacity Storage Unit Active Sensor Suite Improved Weapon Shielding Relay Coupler [NC] Relay Coupler [NC] Relay Coupler [Grunt] Relay Coupler [Grunt] Relay Coupler [Heavy] > --- WEAPON ----------- Wave Gun Gauss Rifle Improved Remote Datajack > --- INVENTORY -------- Quantum Reactor Light Quantum Reactor Light Quantum Reactor Wheel Machine Analyzer Advanced Transmission Jammer Active Sensor Spoofer Relay Coupler [NC] Relay Coupler [NC] Relay Coupler [NC] Relay Coupler [NC] Relay Coupler [Grunt] Relay Coupler [Specialist] Enhanced Nova Cannon Heavy Flak Cannon Micro-nuke Launcher Improved Plasma Cutter Great Maul [Rating: 84] Favorites ----------- Power Neutrino Core Engine Ion Engine Power Core Neutrino Core Reactor Light Antimatter Reactor Propulsion Compact Wheel Treads Light Treads Leg Centrium Leg Wheel Compact Wheel Utility Relay Coupler [NC] Device Improved Transmission Jammer Storage Large Storage Unit Processor Improved System Guard Hackware Relay Coupler [NC] Protection Improved Weapon Shielding Weapon Improved Remote Datajack Energy Gun Particle Gun Energy Cannon Enhanced Nova Cannon Ballistic Gun KE Penetrator Ballistic Cannon Mass Driver Launcher Micro-nuke Launcher Special Weapon Improved Remote Datajack Impact Weapon Great Maul Build | -11 -10 -9 -8 -8 -8 -7 -7 -7 -6 -6 -5 -5 ------- Run | Yrd Mat Mat Mat Gar Mat Fac Gar Fac Fac Gar Fac Gar Slots Evolved 10 | . . 2 2 . . 2 . . 2 . 2 . Power . | . . . . . . . . . . . . . Propulsion 1 | . . . 1 . . . . . . . . . Utility 8 | . . 1 1 . . 2 . . 2 . 2 . Weapon 1 | . . 1 . . . . . . . . . . Parts Attached 120 | 7 1 7 4 23 11 3 19 1 . 16 13 15 Power 9 | 1 . . . 3 . . 3 . . . 1 1 Engine 3 | 1 . . . 1 . . . . . . 1 . Core 4 | . . . . 2 . . 2 . . . . . Reactor 2 | . . . . . . . 1 . . . . 1 Propulsion 22 | 2 . 2 1 6 . 2 1 . . 1 3 4 Treads 3 | 1 . 1 . 1 . . . . . . . . Leg 1 | . . . . . . . . . . . . 1 Wheel 18 | 1 . 1 1 5 . 2 1 . . 1 3 3 Hover . | . . . . . . . . . . . . . Flight . | . . . . . . . . . . . . . Utility 42 | 2 1 2 2 6 4 1 8 1 . 8 4 3 Device 11 | 1 . 1 1 5 . . . . . 2 1 . Storage 4 | 1 1 1 . . . . . 1 . . . . Processor 2 | . . . . . . . 1 . . 1 . . Hackware 22 | . . . 1 . 4 1 7 . . 5 3 1 Protection 3 | . . . . 1 . . . . . . . 2 Artifact . | . . . . . . . . . . . . . Weapon 47 | 2 . 3 1 8 7 . 7 . . 7 5 7 Energy Gun 15 | 1 . 2 . 4 3 . 3 . . 1 . 1 Energy Cannon 1 | . . . . . . . . . . . . 1 Ballistic Gun 8 | 1 . 1 1 1 . . 2 . . 1 1 . Ballistic Cannon 4 | . . . . 1 . . 1 . . 1 . 1 Launcher 4 | . . . . . . . . . . 1 2 1 Special Weapon 9 | . . . . . 3 . 1 . . 2 2 1 Impact Weapon 6 | . . . . 2 1 . . . . 1 . 2 Slashing Weapon . | . . . . . . . . . . . . . Piercing Weapon . | . . . . . . . . . . . . . Special Melee Weapon . | . . . . . . . . . . . . . Unidentified Prototypes 5 | . . . 1 . 1 . . . . 1 1 1 Parts Lost 47 | . . . . 14 3 . 6 . . 3 9 12 Power 6 | . . . . 1 . . 2 . . . 1 2 Propulsion 15 | . . . . 6 2 . 1 . . . 4 2 Utility 11 | . . . . 3 1 . 1 . . 1 1 4 Weapon 15 | . . . . 4 . . 2 . . 2 3 4 Highest Loss Streak 12 | . . . . 6 3 . 2 . . 1 6 12 To Critical Strikes 1 | . . . . . . . . . . . 1 . Average Slot Usage (%) 86 | . 100 69 79 88 90 84 91 99 86 96 79 73 Engine 2 | . 14 3 . 6 . . . . . . 4 4 Core 3 | . . . . 1 9 7 3 7 6 6 . . Treads 3 | . 14 11 9 6 5 . . . . . . . Wheel 16 | . 14 11 18 17 14 15 22 23 20 20 10 9 Device 6 | . 14 10 9 10 11 7 1 . . . 5 5 Storage 8 | . 14 10 9 9 9 7 7 11 13 9 5 5 Hackware 21 | . . . 8 9 13 23 29 33 26 39 33 28 Energy Gun 8 | . 14 11 18 15 9 7 5 7 6 5 4 2 Ballistic Gun 5 | . 14 10 8 6 . . 6 7 6 2 5 4 Ballistic Cannon 1 | . . . . 1 9 7 1 . . 2 . . Special Weapon 3 | . . . . . 6 7 5 7 6 5 4 4 Naked Turns 1 | . . 1 . . . . . . . . . . Heaviest Build 94 | 12 27 27 29 52 52 50 52 86 86 94 69 75 Greatest Support 38 | 16 16 16 26 32 22 38 38 38 38 38 38 38 Greatest Overweight (x) 5 | . 1 1 1 2 4 4 1 2 2 2 3 5 Average Overweight (x) 1 | . . . 1 . 2 2 . 1 2 1 1 1 Largest Inventory Capacity 20 | 8 15 15 15 15 15 15 15 20 20 20 20 20 Average Capacity 16 | 7 14 14 15 15 15 15 15 17 20 20 20 20 Most Carried 20 | 7 6 14 15 15 15 12 15 17 18 20 17 20 Average Carried 14 | 2 4 8 12 14 13 11 14 15 17 19 16 17 Final Capacity 20 | 8 15 15 15 15 15 15 15 20 20 20 20 20 Final Carried 20 | 7 5 13 15 15 12 12 15 17 18 20 15 14 Class Distribution -------------------- 39% | Bothacker-Gunner 17% | Bothacker-Skirmisher 14% | Mutant 12% | Bothacker-Mutant 4% | Scavenger-Gunner 4% | Gunner 4% | Scavenger-Tank Dominant Class ---------------- Mutant | -10/Materials Mutant | -9/Materials Gunner | -8/Materials Bothacker-Mutant | -8/Garrison Bothacker-Gunner | -8/Materials Bothacker-Gunner | -7/Factory Bothacker-Gunner | -7/Garrison Bothacker-Gunner | -7/Factory Bothacker-Gunner | -6/Factory Bothacker-Gunner | -6/Garrison Bothacker-Skirmisher | -5/Factory Bothacker-Skirmisher | -5/Garrison Resources | -11 -10 -9 -8 -8 -8 -7 -7 -7 -6 -6 -5 -5 ----------- Run | Yrd Mat Mat Mat Gar Mat Fac Gar Fac Fac Gar Fac Gar Matter Collected 2921 | 276 17 106 . 520 194 150 435 . 195 414 296 318 Remotely . | . . . . . . . . . . . . . Salvage Created 1928 | 187 67 288 40 516 113 . 137 . . 61 432 87 Parts 112 | 12 2 21 6 30 10 . 8 . . . 19 4 Haulers Intercepted 1 | . . . . . 1 . . . . . . . Recyclers Shooed 2 | 1 . . . . . . . . . . 1 . Parts Field Recycled . | . . . . . . . . . . . . . Retrieved Matter . | . . . . . . . . . . . . . Parts Self-Destructed . | . . . . . . . . . . . . . Prevented . | . . . . . . . . . . . . . Kills | -11 -10 -9 -8 -8 -8 -7 -7 -7 -6 -6 -5 -5 ------- Run | Yrd Mat Mat Mat Gar Mat Fac Gar Fac Fac Gar Fac Gar Combat Hostiles Destroyed 34 | . 1 3 . 12 1 . 3 . . 2 10 2 Guns 22 | . 1 3 . 11 . . 3 . . . 2 2 AOE 11 | . . . . . 1 . . . . 2 8 . Classes Destroyed 13 | 3 2 3 . 2 1 . 1 . . . 1 . Worker 5 | 1 . . . . 1 . . . . . 3 . Tunneler 5 | 4 . 1 . . . . . . . . . . Hauler 1 | . . . . . 1 . . . . . . . Recycler 2 | 1 . 1 . . . . . . . . . . Watcher 7 | . 1 3 1 1 1 . . . . . . . Swarmer 5 | . . 1 . 2 . . . . . . 1 1 Grunt 14 | . 1 . . 4 . . . . . 2 7 . Brawler 1 | . . . . . . . 1 . . . . . Duelist 1 | . . 1 . . . . . . . . . . Protector 1 | . . . . . . . . . . . 1 . Sentry 6 | . . 1 . 3 1 . . . . . 1 . Hunter 2 | . . . . 1 . . . . . . 1 . Programmer 5 | . . . . 2 . . 2 . . . . 1 Best Kill Streak 6 | 6 1 5 1 3 2 . 1 . . 2 6 2 Combat Bots Only 5 | . 1 3 . 3 1 . 1 . . 2 5 2 Max Kills in Single Turn 3 | 1 1 1 1 1 1 . 1 . . 1 3 1 Gunslinging . | . . . . . . . . . . . . . Exploded 2 | . . . . . 1 . . . . 1 2 . Melee . | . . . . . . . . . . . . . Uniques/NPCs Destroyed . | . . . . . . . . . . . . . Combat | -11 -10 -9 -8 -8 -8 -7 -7 -7 -6 -6 -5 -5 -------- Run | Yrd Mat Mat Mat Gar Mat Fac Gar Fac Fac Gar Fac Gar Hostile Shots Fired 361 | . 1 38 . 96 32 4 34 9 . 14 61 72 Missed 122 | . . 11 . 30 8 1 6 4 . 6 30 26 Damage Taken 5004 | . 69 305 . 1169 431 79 468 44 . 463 689 1287 Core 1029 | . 24 99 . 213 56 . 22 . . 105 120 390 Absorbed by Shields 86 | . . . . . . . . . . . . 86 Redirected to Shielding 107 | . . . . . . . . . . . . 107 Core Remaining (%) 56 | 100 83 66 . . 4 . . 66 . 19 . . Volleys Fired 368 | 26 7 36 4 67 38 4 55 2 2 44 47 36 Largest 3 | 2 2 2 3 3 3 1 3 1 1 2 2 2 Hottest 187 | 70 70 70 115 187 169 5 155 7 7 122 97 173 Shots Fired 570 | 32 14 71 12 148 48 4 80 2 2 57 50 50 Gun 412 | 32 14 71 12 146 10 . 51 . . 23 17 36 Cannon 36 | . . . . 2 8 . 10 . . 12 . 4 Launcher 16 | . . . . . . . . . . 5 8 3 Special 106 | . . . . . 30 4 19 2 2 17 25 7 Kinetic 204 | 6 7 36 4 52 8 . 39 . . 12 14 26 Thermal 211 | 26 7 35 4 67 10 . 22 . . 23 3 14 Explosive 16 | . . . . . . . . . . 5 8 3 Electromagnetic 33 | . . . 4 29 . . . . . . . . Robot Hit Streak 11 | 3 5 10 1 11 9 3 10 2 1 6 10 7 Robot Miss Streak 7 | 6 2 5 7 4 5 1 3 . 1 6 2 2 Penetration Max 1 | . . . . . . . . . . . 1 . Secondary Targets 4 | . . 2 . 2 . . . . . . . . Max Gunslinging Chain 1 | . . 1 . 1 . . . . . . . . Shots Hit Robots 316 | 13 9 36 2 91 32 3 40 2 1 30 30 27 Core Hits 136 | 5 4 17 2 26 5 . 10 . . 13 38 16 Critical Kills 1 | . . . . . . . . . . . . 1 Critical Parts Destroyed 4 | . . . . 2 . . 1 . . . . 1 Critical Strikes 16 | 3 . 1 . 6 . . 3 . . 1 . 2 Burn 11 | 3 . 1 . 4 . . 2 . . 1 . . Destroy 4 | . . . . 1 . . 1 . . . . 2 Smash 1 | . . . . 1 . . . . . . . . Melee Attacks 19 | . . . . 15 2 . . . . 1 . 1 Impact 19 | . . . . 15 2 . . . . 1 . 1 Slashing . | . . . . . . . . . . . . . Piercing . | . . . . . . . . . . . . . Sneak Attacks . | . . . . . . . . . . . . . Combat Hostiles . | . . . . . . . . . . . . . Follow-up Attacks . | . . . . . . . . . . . . . Damage Inflicted 7700 | 153 90 426 47 1505 493 . 708 . . 892 2302 1084 Guns 3393 | 153 90 426 47 1254 88 . 480 . . 78 347 430 Cannons 868 | . . . . 34 235 . 228 . . 193 . 178 Explosions 3194 | . . . . . 170 . . . . 621 1955 448 Melee 245 | . . . . 217 . . . . . . . 28 Ramming . | . . . . . . . . . . . . . Kinetic 2420 | 7 29 191 7 592 235 . 525 . . 193 300 341 Thermal 1687 | 146 61 235 12 570 88 . 183 . . 78 47 267 Explosive 3194 | . . . . . 170 . . . . 621 1955 448 Electromagnetic 154 | . . . 28 126 . . . . . . . . Impact 245 | . . . . 217 . . . . . . . 28 Slashing . | . . . . . . . . . . . . . Piercing . | . . . . . . . . . . . . . Highest Corruption 9 | . . . . 1 1 . 9 9 . . . 3 Average Corruption 5 | . . . . 1 1 . 9 9 . . . 2 Corruption Purged . | . . . . . . . . . . . . . Corruption Blocked . | . . . . . . . . . . . . . Effects 34 | . . . . 2 3 . 23 4 . . . 2 Message Errors 8 | . . . . 1 1 . 4 1 . . . 1 Matter Fused 8 | . . . . . 2 . 5 1 . . . . Heat Flow Errors 3 | . . . . . . . 2 1 . . . . Energy Discharges 1 | . . . . . . . 1 . . . . . Parts Fused 1 | . . . . . . . 1 . . . . . Data Loss (minor) 4 | . . . . . . . 2 1 . . . 1 Data Loss (major) 4 | . . . . 1 . . 3 . . . . . Misfires 3 | . . . . . . . 3 . . . . . Alerts 1 | . . . . . . . 1 . . . . . Weapon Failures 1 | . . . . . . . 1 . . . . . Overload Shots . | . . . . . . . . . . . . . Overflow Damage 249 | . . . . 75 7 . . . . 41 103 23 Projectiles . | . . . . . . . . . . . . . Explosions 161 | . . . . . 7 . . . . 41 103 10 Melee 88 | . . . . 75 . . . . . . . 13 Knockbacks 15 | . . . . 1 3 . 3 . . 6 . 2 Impact 2 | . . . . 1 . . . . . . . 1 Kinetic 10 | . . . . . 2 . 2 . . 5 . 1 Secondary 3 | . . . . . 1 . 1 . . 1 . . Self-Inflicted Damage 65 | . . . . . . . . . . . 8 57 Shots 2 | . . . . . . . . . . . 1 1 Rammed . | . . . . . . . . . . . . . Targets Rammed . | . . . . . . . . . . . . . Kicked . | . . . . . . . . . . . . . Crushed . | . . . . . . . . . . . . . Highest Temperature 300 | 300 60 49 84 294 216 6 234 217 . 252 . 107 Average Temperature 65 | 163 28 14 44 60 75 6 46 113 . 79 . 48 Received Heat Transfer 972 | . 12 60 . 237 192 36 105 18 . 18 189 105 Effects 2 | . . . . . 2 . . . . . . . Interference 2 | . . . . . 2 . . . . . . . Siege Activations . | . . . . . . . . . . . . . Robots Corrupted 1 | . . . . 1 . . . . . . . . Combat Hostiles 1 | . . . . 1 . . . . . . . . Parts Fried 2 | . . . . 2 . . . . . . . . Impact Corruptions 4 | . . . . 3 . . . . . . . 1 Robots Melted 1 | 1 . . . . . . . . . . . . Combat Hostiles . | . . . . . . . . . . . . . Parts Melted 3 | 1 . . . 2 . . . . . . . . Heat Transferred 4504 | 666 185 712 37 1554 185 . 527 . . 222 83 333 Parts Sabotaged . | . . . . . . . . . . . . . Parts Stolen . | . . . . . . . . . . . . . Parts Stripped . | . . . . . . . . . . . . . Power Chain Reactions . | . . . . . . . . . . . . . Alert | -11 -10 -9 -8 -8 -8 -7 -7 -7 -6 -6 -5 -5 ------- Run | Yrd Mat Mat Mat Gar Mat Fac Gar Fac Fac Gar Fac Gar Peak Influence 1869 | 30 191 423 176 930 1143 713 1129 607 296 881 1661 1869 Initial 1162 | . 19 80 150 114 453 519 359 592 296 207 438 1162 Average 634 | 13 51 202 167 498 791 594 739 600 296 677 1163 1430 Maximum Alert Level 5 | . . 2 . 3 4 3 4 2 1 3 5 5 Low Security (%) 15 | 100 100 54 100 13 . . . . . . . . Level 1 17 | . . 35 . 28 . . 7 . 100 25 . . Level 2 22 | . . 10 . 24 31 86 34 100 . 4 3 . Level 3 30 | . . . . 33 63 13 49 . . 70 16 . Level 4 11 | . . . . . 5 . 8 . . . 66 71 Level 5 2 | . . . . . . . . . . . 4 28 High Security . | . . . . . . . . . . . 8 . Max Security . | . . . . . . . . . . . . . Squads Dispatched 17 | . 2 2 . . 4 . . . . . 9 . Investigation 8 | . 2 1 . . . . . . . . 5 . Extermination . | . . . . . . . . . . . . . Reinforcement 7 | . . 1 . . 4 . . . . . 2 . Assault 1 | . . . . . . . . . . . 1 . Garrison 1 | . . . . . . . . . . . 1 . Intercept . | . . . . . . . . . . . . . Searches Triggered . | . . . . . . . . . . . . . Construction Impeded 2 | . . . . . 1 . . . . . 1 . Haulers Reinforced . | . . . . . . . . . . . . . Active Scanning Responses 3 | . . . . . . . . . . . 2 1 Cargo Convoy Interrupts . | . . . . . . . . . . . . . Stealth | -11 -10 -9 -8 -8 -8 -7 -7 -7 -6 -6 -5 -5 --------- Run | Yrd Mat Mat Mat Gar Mat Fac Gar Fac Fac Gar Fac Gar Distress Signals 7 | . . 3 . . 3 1 . . . . . . Communications Jammed 7 | . . . . . 6 1 . . . . . . Distress Signals 4 | . . . . . 3 1 . . . . . . Times Spotted 192 | . 8 25 1 25 22 8 22 1 1 23 29 27 Peak Tracking Total 10 | . 2 6 1 3 6 4 3 1 1 8 6 10 Tactical Retreats 4 | . . 1 . . . 1 . . . 1 1 . Traps | -11 -10 -9 -8 -8 -8 -7 -7 -7 -6 -6 -5 -5 ------- Run | Yrd Mat Mat Mat Gar Mat Fac Gar Fac Fac Gar Fac Gar Traps Triggered 17 | . 2 1 . 5 . 1 4 . 1 1 1 1 Indirectly . | . . . . . . . . . . . . . Trap Hack Attempts . | . . . . . . . . . . . . . Triggered . | . . . . . . . . . . . . . Disarmed . | . . . . . . . . . . . . . Reprogrammed . | . . . . . . . . . . . . . Reused . | . . . . . . . . . . . . . Traps Extracted . | . . . . . . . . . . . . . Installed . | . . . . . . . . . . . . . Triggered 1 | . . . . 1 . . . . . . . . Objects Rigged 3 | . . . . . 3 . . . . . . . Exploded 2 | . . . . . 2 . . . . . . . Machines | -11 -10 -9 -8 -8 -8 -7 -7 -7 -6 -6 -5 -5 ---------- Run | Yrd Mat Mat Mat Gar Mat Fac Gar Fac Fac Gar Fac Gar Machines Disabled 35 | . . . . 3 5 . 5 . . 8 12 2 Max in Single Turn 8 | . . . . 1 2 . 1 . . 1 8 . Garrison Relay 9 | . . . . 3 . . 4 . . 2 . . Machines Repaired . | . . . . . . . . . . . . . Machines Dismantled . | . . . . . . . . . . . . . Machines Sabotaged . | . . . . . . . . . . . . . Overloaded Fab Kills . | . . . . . . . . . . . . . Hacking | -11 -10 -9 -8 -8 -8 -7 -7 -7 -6 -6 -5 -5 --------- Run | Yrd Mat Mat Mat Gar Mat Fac Gar Fac Fac Gar Fac Gar Machines Accessed 22 | . 2 4 1 2 3 1 2 2 1 1 3 . Terminals 16 | . 2 4 . 2 2 . 2 1 . 1 2 . Fabricators . | . . . . . . . . . . . . . Repair Stations . | . . . . . . . . . . . . . Recycling Units . | . . . . . . . . . . . . . Scanalyzers 1 | . . . . . . . . 1 . . . . Garrison Access 5 | . . . 1 . 1 1 . . 1 . 1 . Total Hacks 40 | . 5 8 1 2 12 1 2 2 1 2 4 . Successful 22 | . . 5 1 2 9 1 1 . 1 1 1 . Failed 18 | . 5 3 . . 3 . 1 2 . 1 3 . Catastrophic 8 | . 1 1 . . . . 1 1 . 1 3 . Database Lockouts . | . . . . . . . . . . . . . Manual 21 | . . 5 . . 11 . 1 1 . 1 2 . Terminals 30 | . 5 8 . 2 8 . 2 1 . 2 2 . Fabricators . | . . . . . . . . . . . . . Repair Stations . | . . . . . . . . . . . . . Recycling Units . | . . . . . . . . . . . . . Scanalyzers 1 | . . . . . . . . 1 . . . . Garrison Access 9 | . . . 1 . 4 1 . . 1 . 2 . Terminal Hacks 11 | . . 4 . 2 3 . 1 . . 1 . . Record 1 | . . . . . 1 . . . . . . . Robot Analysis 4 | . . 2 . . 2 . . . . . . . Open Door 1 | . . . . 1 . . . . . . . . Emergency Access Points 2 | . . . . . . . 1 . . 1 . . Unreport Threat 1 | . . 1 . . . . . . . . . . Locate Traps 1 | . . 1 . . . . . . . . . . Garrison Registry 1 | . . . . 1 . . . . . . . . Fabricator Hacks . | . . . . . . . . . . . . . Repair Station Hacks . | . . . . . . . . . . . . . Recycling Unit Hacks . | . . . . . . . . . . . . . Scanalyzer . | . . . . . . . . . . . . . Garrison Access Hacks 5 | . . . 1 . 1 1 . . 1 . 1 . Unlock Access 4 | . . . 1 . . 1 . . 1 . 1 . Coupler Status 1 | . . . . . 1 . . . . . . . Unauthorized Hacks 6 | . . 1 . . 5 . . . . . . . Terminals 4 | . . 1 . . 3 . . . . . . . Track 1 | . . . . . 1 . . . . . . . Assimilate 1 | . . 1 . . . . . . . . . . Detonate 1 | . . . . . 1 . . . . . . . Operators 1 | . . . . . 1 . . . . . . . Fabricators . | . . . . . . . . . . . . . Repair Stations . | . . . . . . . . . . . . . Recycling Units . | . . . . . . . . . . . . . Scanalyzers . | . . . . . . . . . . . . . Garrison Access 2 | . . . . . 2 . . . . . . . Broadcast 1 | . . . . . 1 . . . . . . . Reprogram 1 | . . . . . 1 . . . . . . . Data Cores Recovered 1 | . . . . . . . . . . . 1 . Used . | . . . . . . . . . . . . . Hacking Detections 18 | . 2 4 . 1 2 1 2 1 1 1 3 . Full Trace Events 1 | . . . . . . . . . . . 1 . Feedback Events . | . . . . . . . . . . . . . Feedback Blocked . | . . . . . . . . . . . . . Robot Schematics Acquired . | . . . . . . . . . . . . . Robots Built . | . . . . . . . . . . . . . Authchips . | . . . . . . . . . . . . . Time . | . . . . . . . . . . . . . Total Robot Build Rating . | . . . . . . . . . . . . . Part Schematics Acquired . | . . . . . . . . . . . . . Parts Built . | . . . . . . . . . . . . . Authchips . | . . . . . . . . . . . . . Time . | . . . . . . . . . . . . . Total Part Build Rating . | . . . . . . . . . . . . . Parts Repaired . | . . . . . . . . . . . . . Time . | . . . . . . . . . . . . . Parts Recycled . | . . . . . . . . . . . . . Recycled Matter . | . . . . . . . . . . . . . Retrieved Matter . | . . . . . . . . . . . . . Retrieved Components . | . . . . . . . . . . . . . Parts Scanalyzed . | . . . . . . . . . . . . . Part Schematics Acquired . | . . . . . . . . . . . . . Parts Damaged . | . . . . . . . . . . . . . Bothacking | -11 -10 -9 -8 -8 -8 -7 -7 -7 -6 -6 -5 -5 ------------ Run | Yrd Mat Mat Mat Gar Mat Fac Gar Fac Fac Gar Fac Gar Used RIF Installer 2 | . . . . 1 . . 1 . . . . . Robot Detection 1 | . . . . . . . 1 . . . . . Robots Hacked 46 | . . . . . 11 2 12 1 1 4 12 3 Non-combat 11 | . . . . . 8 . . . 1 . 2 . Combat 35 | . . . . . 3 2 12 1 . 4 10 3 Robot Hacks Applied 50 | . . . . . 13 2 12 1 1 4 13 4 parse_system 1 | . . . . . . . 1 . . . . . no_distress 1 | . . . . . 1 . . . . . . . deconstruct_machine 1 | . . . . . . . . . 1 . . . ignore_repairs 1 | . . . . . 1 . . . . . . . randomize_corridors 1 | . . . . . 1 . . . . . . . find_fabricator 1 | . . . . . . . . . . . 1 . find_recycling 1 | . . . . . 1 . . . . . . . ignore_parts 1 | . . . . . 1 . . . . . . . disable_shields 1 | . . . . . . . . . . . 1 . find_garrison 2 | . . . . . 1 . . . . . 1 . scatter_targeting 6 | . . . . . 1 1 1 . . . 3 . disrupt_area 10 | . . . . . . . 2 . . 3 2 3 overload_power 1 | . . . . . . . . . . . 1 . amplify_resonance 1 | . . . . . . . . . . . . 1 formatsys_low 3 | . . . . . 3 . . . . . . . formatsys_high 18 | . . . . . 3 1 8 1 . 1 4 . Relay Couplers Released 35 | . . . . 12 . . 13 . . 10 . . Machine Destruction 35 | . . . . 12 . . 13 . . 10 . . Attached 20 | . . . . . 4 1 7 . . 5 2 1 Fabnet Peak Effective % . | . . . . . . . . . . . . . Robots Rewired 11 | . . . . 2 . . . . . 8 . 1 Allies Hacked . | . . . . . . . . . . . . . Hacks Repelled . | . . . . . . . . . . . . . Allies | -11 -10 -9 -8 -8 -8 -7 -7 -7 -6 -6 -5 -5 -------- Run | Yrd Mat Mat Mat Gar Mat Fac Gar Fac Fac Gar Fac Gar Total Allies 38 | . 1 1 . 2 6 1 10 1 . 11 4 1 Largest Group 10 | . 1 2 1 3 6 5 7 8 8 9 10 2 Highest-Rated Group 476 | . 56 68 73 130 139 133 310 317 327 476 372 274 Highest-Rated Ally 158 | . 56 68 73 81 84 87 95 92 94 111 130 158 Total Orders 2 | . . . . . . . . . . . 2 . AID 2 | . . . . . . . . . . . 2 . Ally Attacks 526 | . 14 28 1 73 44 35 86 . 2 80 109 54 Total Damage 16489 | . 163 1278 28 1912 1436 621 2583 . 39 1874 2979 3576 Kills 157 | . 4 18 . 15 18 8 20 . . 22 26 26 Allies Corrupted . | . . . . . . . . . . . . . Allies Melted 1 | . . . . 1 . . . . . . . . Intel | -11 -10 -9 -8 -8 -8 -7 -7 -7 -6 -6 -5 -5 ------- Run | Yrd Mat Mat Mat Gar Mat Fac Gar Fac Fac Gar Fac Gar Robot Analysis Total 4 | . . 2 . . 2 . . . . . . . Derelict Logs Recovered . | . . . . . . . . . . . . . Drone Launches . | . . . . . . . . . . . . . Drone Recoveries . | . . . . . . . . . . . . . Exploration | -11 -10 -9 -8 -8 -8 -7 -7 -7 -6 -6 -5 -5 ------------- Run | Yrd Mat Mat Mat Gar Mat Fac Gar Fac Fac Gar Fac Gar Turns Passed 6290 | 158 232 510 124 1322 369 453 1033 125 237 803 530 394 Spaces Moved 3982 | 86 166 319 90 792 217 312 760 104 118 461 348 209 Core 6 | 4 . 2 . . . . . . . . . . Treads . | . . . . . . . . . . . . . Legs 5 | . . . . . . . . . . . . 5 Wheels 3971 | 82 166 317 90 792 217 312 760 104 118 461 348 204 Hover . | . . . . . . . . . . . . . Flight . | . . . . . . . . . . . . . Fastest Speed 50 | 50 100 50 105 100 115 105 90 105 120 105 105 105 Average Speed 112 | 97 114 114 105 109 126 129 105 112 120 114 107 108 Slowest Speed 190 | 100 115 115 105 130 150 150 110 120 120 120 130 190 Overloaded Moves . | . . . . . . . . . . . . . Propulsion Burnouts . | . . . . . . . . . . . . . Robots Hopped . | . . . . . . . . . . . . . Cave-ins Triggered . | . . . . . . . . . . . . . Exploration Rate (%) 28 | 4 36 36 8 57 30 7 91 3 2 54 14 25 Regions Visited 12 Branch Regions . Pre-discovered Areas . | . . . . . . . . . . . . . Known Exits Taken 4 | . . . 1 . . 1 . . 1 . 1 . Unknown Exits Taken 5 | 1 1 1 . . 1 . . 1 . . . . Scrap Searched . | . . . . . . . . . . . . . Spaces Dug 1 | . . . . . 1 . . . . . . . Terrain Destroyed 253 | . . . . . 68 . 3 . . 31 124 27 Melee 1 | . . . . . 1 . . . . . . . Projectile 8 | . . . . . 3 . 3 . . . . 2 AOE 244 | . . . . . 64 . . . . 31 124 25 Terrain Rammed . | . . . . . . . . . . . . . Walls Destroyed . | . . . . . . . . . . . . . Machines Disabled . | . . . . . . . . . . . . . Actions | -11 -10 -9 -8 -8 -8 -7 -7 -7 -6 -6 -5 -5 --------- Run | Yrd Mat Mat Mat Gar Mat Fac Gar Fac Fac Gar Fac Gar Total 5296 | 125 197 397 111 1092 275 357 933 113 212 687 466 331 Wait 546 | . 19 27 8 111 . 37 26 4 83 121 51 59 Move 3972 | 85 165 318 90 790 216 312 758 103 118 460 348 209 Hop . | . . . . . . . . . . . . . Pick Up 87 | 7 1 9 3 22 2 1 19 2 1 9 5 6 Fast Attach 51 | 7 . 6 2 8 1 2 12 1 . 5 3 4 Attach 46 | . . 1 2 14 4 1 5 . . 3 8 8 Detach 4 | . . . 1 . . . . . . . 1 2 Swap 27 | . 1 . . 5 6 . 2 . . 8 2 3 Drop 55 | . 4 . 1 13 6 . 18 1 . 9 1 2 Fire 368 | 26 7 36 4 67 38 4 55 2 2 44 47 36 Melee 19 | . . . . 15 2 . . . . 1 . 1 Ram . | . . . . . . . . . . . . . Kick . | . . . . . . . . . . . . . Crush . | . . . . . . . . . . . . . Escape Stasis 92 | . . . . 40 . . 35 . 8 8 . 1 Rewire 29 | . . . . 7 . . 3 . . 19 . . Trap . | . . . . . . . . . . . . . Miscellaneous . | . . . . . . . . . . . . . Route ------- -11/Scrapyard -10/Materials -9/Materials -8/Materials -8/Garrison (discovered 4 exits: *Mat x4) -8/Materials -7/Factory -7/Garrison (discovered 3 exits: *Fac x3) -7/Factory -6/Factory -6/Garrison -5/Factory -5/Garrison History --------- Turn | Location | Event 14 | -11/Scrapyard | Discovered new exit (range 15) 159 | -11/Scrapyard | Entered Materials 308 | -10/Materials | Build established: Mutant 323 | -10/Materials | Discovered new exit (range 4) 391 | -10/Materials | Entered another Materials area 391 | -9/Materials | Evolved 2 slots: Utility x1, Weapon x1 565 | -9/Materials | Released all parts (7) 872 | -9/Materials | Discovered new exit (range 3) 901 | -9/Materials | Entered another Materials area 901 | -8/Materials | Evolved 2 slots: Propulsion x1, Utility x1 1017 | -8/Materials | Identified exit to Garrison 1025 | -8/Materials | Entered Garrison 1093 | -8/Garrison | Triggered checkpoint 1159 | -8/Garrison | Garrison Relay disabled 1211 | -8/Garrison | Lost 5 parts (3n1u1w) 1393 | -8/Garrison | Triggered checkpoint 1525 | -8/Garrison | Triggered checkpoint 1559 | -8/Garrison | Triggered checkpoint 1628 | -8/Garrison | Discovered new exit (range 14) 1824 | -8/Garrison | Discovered new exit (range 19) 1824 | -8/Garrison | Discovered new exit (range 59) 1824 | -8/Garrison | Discovered new exit (range 57) 1824 | -8/Garrison | Discovered new exit (range 31) 1875 | -8/Garrison | Triggered checkpoint 1922 | -8/Garrison | Installed Relay Interface Framework 1932 | -8/Garrison | Garrison Relay disabled 2037 | -8/Garrison | Core integrity fell below 50% 2125 | -8/Garrison | Lost 6 parts (1p3n1u1w) 2296 | -8/Garrison | Garrison Relay disabled 2347 | -8/Garrison | Entered Materials 2468 | -8/Materials | Core integrity fell below 20% 2621 | -8/Materials | Lost 3 parts (2n1u) 2704 | -8/Materials | Discovered new exit (range 8) 2716 | -8/Materials | Entered Factory 2716 | -7/Factory | Accompanied by 4 allies 2716 | -7/Factory | Evolved 2 slots: Utility x2 2972 | -7/Factory | Build established: Bothacker-Gunner 3147 | -7/Factory | Identified exit to Garrison 3169 | -7/Factory | Entered Garrison 3169 | -7/Garrison | Accompanied by 3 allies 3191 | -7/Garrison | Triggered checkpoint 3236 | -7/Garrison | Lost 3 allies 3358 | -7/Garrison | Garrison Relay disabled 3436 | -7/Garrison | Garrison Relay disabled 3505 | -7/Garrison | Triggered checkpoint 3658 | -7/Garrison | Found embedded Infiltrators 3662 | -7/Garrison | Discovered new exit (range 10) 3691 | -7/Garrison | Triggered checkpoint 3761 | -7/Garrison | Triggered checkpoint 3853 | -7/Garrison | Lost 3 allies 3858 | -7/Garrison | Discovered new exit (range 8) 3897 | -7/Garrison | Triggered checkpoint 3919 | -7/Garrison | Garrison Relay disabled 3985 | -7/Garrison | Triggered checkpoint 4115 | -7/Garrison | Triggered checkpoint 4136 | -7/Garrison | Expanded RIF knowledge: Robot Detection 4177 | -7/Garrison | Discovered new exit (range 12) 4202 | -7/Garrison | Entered Factory 4202 | -7/Factory | Accompanied by 6 allies 4298 | -7/Factory | Discovered new exit (range 14) 4327 | -7/Factory | Entered another Factory area 4327 | -6/Factory | Accompanied by 7 allies 4327 | -6/Factory | Evolved 2 slots: Utility x2 4563 | -6/Factory | Identified exit to Garrison 4564 | -6/Factory | Entered Garrison 4564 | -6/Garrison | Accompanied by 7 allies 4632 | -6/Garrison | Triggered checkpoint 4690 | -6/Garrison | Garrison Relay disabled 4714 | -6/Garrison | Found embedded Infiltrators 4738 | -6/Garrison | Triggered checkpoint 4765 | -6/Garrison | Triggered checkpoint 4774 | -6/Garrison | Triggered checkpoint 4775 | -6/Garrison | Spotted B-75 Beast 4790 | -6/Garrison | Allies destroyed B-75 Beast 4790 | -6/Garrison | Triggered checkpoint 4835 | -6/Garrison | Lost 7 allies 4890 | -6/Garrison | Triggered checkpoint 4891 | -6/Garrison | Garrison Relay disabled 4916 | -6/Garrison | Discovered new exit (range 14) 5019 | -6/Garrison | Found Prototype Device 5038 | -6/Garrison | H-XX Assembler disabled 5129 | -6/Garrison | Core integrity fell below 50% 5156 | -6/Garrison | Core integrity fell below 20% 5367 | -6/Garrison | Entered Factory 5367 | -5/Factory | Accompanied by 8 allies 5367 | -5/Factory | Evolved 2 slots: Utility x2 5367 | -5/Factory | Identified Active Sensor Suite 5657 | -5/Factory | Build established: Bothacker-Skirmisher 5667 | -5/Factory | First assault squad dispatched 5774 | -5/Factory | Lost 8 allies 5802 | -5/Factory | Garrison activated, responded to threat 5851 | -5/Factory | High security lockdown imminent 5874 | -5/Factory | Lost 6 parts (2n1u3w) 5884 | -5/Factory | Identified exit to Garrison 5897 | -5/Factory | Entered Garrison 5929 | -5/Garrison | Spotted B-90 Cyclops 5931 | -5/Garrison | Rewired B-86 Titan 5938 | -5/Garrison | Allies destroyed B-90 Cyclops 6044 | -5/Garrison | Spotted B-75 Beast 6051 | -5/Garrison | Allies destroyed B-75 Beast 6235 | -5/Garrison | Spotted B-75 Beast 6242 | -5/Garrison | Spotted B-75 Beast 6242 | -5/Garrison | Spotted Striker 6258 | -5/Garrison | Spotted Striker 6267 | -5/Garrison | Core integrity fell below 50% 6270 | -5/Garrison | Allies destroyed Striker 6279 | -5/Garrison | Core integrity fell below 20% 6291 | -5/Garrison | Allies destroyed Striker 6291 | -5/Garrison | Destroyed by B-75 Beast with Magnetic Acceleration Cannon Last Messages --------------- 06279_ G-50 Soldier destroyed. 06280_ H&SNHP CR&P1A/&V8RN8SRWX4V8YXAQ2YLEC 06281_ Antimatter Reactor destroyed. 06282_ Player 2 Flexi-carbon Leg severed. 06282_ Player 2 system corrupted by crushing effect. 06282_ Player 2 knocked back. 06282_ Player 2 attaches Flexi-carbon Leg. 06283_ Acquired Prototype Protection. 06283_ Identified Centrium Light Armor Plating. 06283_ Striker suffers critical hit (Smash). 06286_ Striker knocked back. 06288_ The unstable cave ceiling collapses. 06288_ Player 2 Centrium Leg severed. 06289_ Player 2 knocked back. 06289_ Player 2 attaches Flexi-carbon Leg. 06290_ Striker suffers critical hit (Smash). 06290_ Striker system corrupted by crushing effect. 06291_ Striker system terminally corrupted. Map ----- +----------------------------------------------------+ | ?????????????????????????????????????????????????? | | ?????????????????????????????????????????????????? | | ?????????????????????????????????????????????????? | | ?????????????????????????????????????????????????? | | ?????????????????????????????????????????????????? | | ?????????????????????????????????????????????????? | | ?????????????????????????????????????????????????? | | ?????????????????????????????????????????????????? | | ?????????????????????????????????????????????????? | | ?????????????????????????????????????????????????? | | ?????????????????????????????????????????????????? | | ?????????????????????????????????????????????????? | | ?????????????????????????????????????????????????? | | ?????????????????????????????????????????????????? | | ?????????????????????????????????????????????????? | | ??????????? ??????????????????g??????????????????? | | ?????????? ????????????????????????????????????? | | ?????????? #??????????????????????????????????? | | ????????? ?????????????????????????????????? | | ?????????? ????????????????????????????????? | | ?????????? ???????????????????????????????? | | ????????? B ??####????????????????????????? | | ?????????? BB ###@% ????????????????????????? | | ????????? BB * =[ =l=#####????????????????????? | | ??????? BB% % *=b%% %#????????????????????? | | ??????? ! %=[=!* @= #????????????????????? | | ??????? = = %! ##%%#????????????????????? | | ?????????# # #* #????????????????????? | | ??????????????# # ##| ##!!#????????????????????? | | ??????????????##??#??#*%!=*%#????????????????????? | | ??????????????????####=###%!#???????????????###### | | ??????????????????# [!%#?#%^#???????????????#""""" | | ??????????????????####*#?#*!#?????????????###" ! | | ???????????????# ????#=#?#*/#?????????????# == | | ???????????????# ####=###%!############### ### | | ???????????????# ^[!%%!%*=!% *%! " =! * | | ???????????????# !=%![%*[=![% %=/ # #=! | | ???????????????#######!########""""#### ## ""# | | ????????????????????##[######## ##????# ## ^ * | | ????????????????????#*%## #?????# ####" * = | | ????????????????????##=## #######?????# #??#""""" | | ?????????????????????# ## #???????????# #??###### | | ?????????????????????# ## #???????????# ###?????? | | ?????????????????????# ## #???????????# #?????? | | ?????????????????????# ## #???????????# #?????? | | ?????????????????????# ##"##### #?????# #?????? | | ?????????????????????# #?????# ###?????? | | ?????????????????????### ######?????# #???????? | | ???????????????????????# #??????????# #???????? | | ???????????????????????#####??????????# #???????? | +----------------------------------------------------+ Best States ------------- Heat Dissipation 45 Energy Generation 21 Energy Capacity 325 Matter Stores 300 Matter Capacity 300 Sight Range 16 Robot Scan Range 20 Terrain Scan Density 10 Jamming Range 14 Corruption Containment 12 Armor Coverage 150 Weapon Shielding 66 Evasion (%) 42 Offensive Hacking 10 Relay Coupler Types 5 Relay Coupler Value 156 Authchip Count 1 Item Schematics ----------------- None Robot Schematics ------------------ None Fabricated ------------ Nothing Alien Tech Used ----------------- None Achievements -------------- None Challenges ------------ None Player 2 | -11 -10 -9 -8 -8 -8 -7 -7 -7 -6 -6 -5 -5 ---------- Run | Yrd Mat Mat Mat Gar Mat Fac Gar Fac Fac Gar Fac Gar Slots Evolved 10 | . 2 2 . . 2 . . 2 . 2 . . Power 1 | . . . . . . . . . . 1 . . Propulsion 3 | . . 1 . . 1 . . 1 . . . . Utility 4 | . 1 1 . . 1 . . 1 . . . . Weapon 2 | . 1 . . . . . . . . 1 . . Parts Attached 142 | . 6 15 5 20 8 7 16 . 4 33 12 16 Parts Lost 41 | . . 2 . 7 . 2 6 . . 16 1 7 Damage Taken 6897 | . 146 207 7 1055 273 269 702 . . 1648 298 2292 Core 1593 | . 17 34 7 155 92 16 196 . . 576 . 500 Player 2/Cogmind (%) 60 | . 41 25 100 42 62 100 89 . . 84 . 56 Absorbed by Shields 4 | . . . . . . . 4 . . . . . Damage Inflicted 10161 | . 163 1278 28 1829 1145 348 1077 . 23 821 994 2455 Player 2/Cogmind (%) 56 | . 64 75 37 54 69 100 60 . 100 47 30 69 Combat Hostiles Destroyed 83 | . 4 11 . 15 7 2 12 . . 7 7 18 Player 2/Cogmind (%) 70 | . 80 78 . 55 87 100 80 . . 77 41 90 Game ------ Seed MetaNodeSpecial Manual? 0 Play Time 01:21:33 Cumulative 86.1 hours Start 2024.04.13 @ 00:21:29 End 2024.04.13 @ 01:50:31 Sessions 1 Manual Loads 0 Difficulty Rogue Special Mode AFD2020/Player2 Game No. 100 Rogue 100 Adventurer 0 Explorer 0 Win Type - Total 1 Types 1/0/0/0/0/0/0/0/0 Lore% 44 Gallery% 65 Achievement% 50 Wizard Run 0 Options --------- Layout 1 ASCII 0 Keyboard 0 Movement Numpad Keybinds 0 Fullscreen 1 Font 24/Smallcaps Map View 50x35 Zoom Use 0% Tactical HUD 1 Map Filters NONE Filters NONE Steam 1 RUN: 1417e67b-84a8-4ae1-bfa1-b88908c8cd12